bitfinex/quotes_SOLUSD_20250305
["timestamp","ask_amount","ask_price","bid_price","bid_amount"]
[1741141811796,0.033,144.54,144.51,20.4611037]
[1741141811985,0.033,144.54,144.49,20.20678056]
[1741141812187,20.20978056,144.54,144.49,20.20678056]
[1741141812395,20.20978056,144.54,144.49,0.03]
[1741141812587,20.17678056,144.53,144.49,0.03]
[1741141812881,101.97678056,144.53,144.49,0.03]
[1741141813400,81.8,144.53,144.49,0.03]
[1741141813602,6.4623,144.54,144.5,20.17678056]
[1741141813774,6.9515,144.54,144.5,20.17678056]
[1741141813975,24.2477,144.54,144.49,20.20678056]
[1741141814576,44.42448056,144.54,144.49,0.03]
[1741141815019,20.17678056,144.53,144.49,0.03]
[1741141816182,6.9194,144.52,144.49,0.03]
[1741141817109,27.09568056,144.53,144.49,0.03]
[1741141817417,6.9189,144.53,144.49,0.03]
[1741141819316,101.97678056,144.52,144.49,0.03]
[1741141819611,20.17678056,144.51,144.49,0.03]
[1741141819810,101.97678056,144.52,144.49,0.03]
[1741141820896,6.9199,144.51,144.49,0.03]
[1741141821981,27.09668056,144.51,144.49,0.03]
[1741141822186,20.17678056,144.5,144.49,0.03]
[1741141822526,27.09668056,144.51,144.49,0.03]
[1741141823815,20.17678056,144.5,144.49,0.03]
[1741141824290,27.09718056,144.5,144.49,0.03]
[1741141824785,37.47418056,144.53,144.49,0.03]
[1741141824993,6.9194,144.52,144.49,0.03]
[1741141825316,6.919,144.53,144.49,20.20678056]
[1741141825912,27.12878056,144.53,144.49,0.03]
[1741141826626,6.952,144.53,144.49,0.03]
[1741141827522,0.033,144.53,144.5,20.17678056]
[1741141827830,0.033,144.53,144.52,20.4611037]
[1741141828011,0.033,144.53,144.52,102.0611037]
[1741141828523,0.033,144.53,144.52,108.9805037]
[1741141828903,0.033,144.53,144.52,102.0611037]
[1741141829219,0.033,144.53,144.51,1.6507]
[1741141829402,0.033,144.53,144.51,21.82748056]
[1741141829799,0.033,144.53,144.5,27.1098037]
[1741141830011,0.033,144.53,144.49,0.03]
[1741141830830,6.9519,144.53,144.49,0.03]
[1741141831217,0.033,144.53,144.49,20.20678056]
[1741141831421,0.033,144.53,144.5,20.17678056]
[1741141831610,0.033,144.53,144.51,20.4611037]
[1741141832113,0.033,144.53,144.52,20.17678056]
[1741141832511,0.033,144.53,144.51,20.4611037]
[1741141832929,0.033,144.53,144.5,0.28432314]
[1741141833229,0.033,144.53,144.5,20.4611037]
[1741141834531,0.033,144.53,144.51,20.17678056]
[1741141835628,0.033,144.53,144.49,0.03]
[1741141835817,20.20978056,144.53,144.49,0.03]
[1741141836136,20.17678056,144.52,144.49,0.03]
[1741141836311,0.033,144.53,144.49,0.03]
[1741141836312,20.20978056,144.53,144.49,0.03]
[1741141836516,6.9194,144.52,144.49,0.03]
[1741141837739,0.033,144.53,144.49,20.4911037]
[1741141838032,6.952,144.53,144.49,0.03]
[1741141838205,0.033,144.53,144.49,0.03]
[1741141838715,0.033,144.53,144.49,20.20678056]
[1741141840440,0.033,144.53,144.51,20.17678056]
[1741141841738,0.033,144.53,144.52,20.17678056]
[1741141841940,0.033,144.53,144.52,27.3805037]
[1741141842112,0.033,144.53,144.52,108.9805037]
[1741141842713,0.033,144.54,144.53,0.28432314]
[1741141842938,0.033,144.54,144.53,21.91330287]
[1741141844215,0.033,144.54,144.53,28.83220287]
[1741141844815,0.033,144.54,144.53,20.4611037]
[1741141845021,0.033,144.54,144.53,27.3800037]
[1741141845346,0.033,144.54,144.53,20.17678056]
[1741141845648,0.033,144.54,144.53,20.4611037]
[1741141845816,0.033,144.54,144.53,20.17678056]
[1741141846020,0.033,144.54,144.49,101.80678056]
[1741141846236,0.033,144.54,144.5,20.17678056]
[1741141846651,0.033,144.54,144.52,20.17678056]
[1741141846827,0.033,144.54,144.53,20.17678056]
[1741141847345,0.033,144.54,144.53,20.4611037]
[1741141848932,0.033,144.54,144.53,108.9800037]
[1741141849254,0.033,144.54,144.53,138.43161629]
[1741141849843,0.033,144.54,144.53,138.46161629]
[1741141850242,0.033,144.54,144.53,116.8325037]
[1741141850829,0.033,144.54,144.53,118.28477774]
[1741141851144,0.033,144.54,144.53,116.8325037]
[1741141851342,0.033,144.54,144.53,118.28471327]
[1741141852031,0.033,144.54,144.53,430.28471327]
[1741141852228,0.033,144.54,144.53,116.8325037]
[1741141852447,0.033,144.54,144.53,101.80678056]
[1741141852649,0.033,144.54,144.53,102.0911037]
[1741141852946,0.033,144.54,144.53,109.0100037]
[1741141854228,0.033,144.55,144.54,0.28432314]
[1741141854558,0.033,144.58,144.57,20.28432314]
[1741141854739,0.033,144.58,144.57,129.8741037]
[1741141854923,0.033,144.6,144.59,20.4611037]
[1741141855245,0.033,144.63,144.62,20.28432314]
[1741141855427,0.033,144.63,144.62,142.23788426]
[1741141855634,0.033,144.63,144.62,143.6892374]
[1741141855840,0.033,144.63,144.62,142.23788426]
[1741141856047,0.033,144.63,144.62,122.0611037]
[1741141856343,0.033,144.63,144.62,128.9757037]
[1741141856550,0.033,144.63,144.62,141.00657511]
[1741141856853,0.033,144.63,144.62,134.09197511]
[1741141857345,0.033,144.63,144.62,173.21422708]
[1741141858632,0.033,144.63,144.62,178.86234974]
[1741141858834,0.033,144.68,144.67,32.49197511]
[1741141859145,0.033,144.68,144.67,114.09197511]
[1741141859536,0.033,144.68,144.67,147.75043992]
[1741141859734,0.033,144.68,144.67,146.29962708]
[1741141860145,0.033,144.69,144.68,0.28432314]
[1741141860455,8.179,144.82,144.74,0.28432314]
[1741141860648,6.9052,144.82,144.77,32.20765197]
[1741141860851,6.9052,144.82,144.78,32.20765197]
[1741141861059,120.91225197,144.84,144.79,32.49197511]
[1741141861261,0.033,144.85,144.83,32.20765197]
[1741141861552,0.033,144.85,144.84,32.20765197]
[1741141861741,0.033,144.85,144.84,32.49197511]
[1741141862652,0.033,144.85,144.84,39.39607511]
[1741141863065,0.033,144.85,144.84,32.49197511]
[1741141863556,0.033,144.85,144.82,32.20765197]
[1741141863884,0.033,144.85,144.84,32.49197511]
[1741141864047,1e-08,144.88,144.87,0.28432314]
[1741141864382,6.8984,144.96,144.89,0.28432314]
[1741141864550,6.8984,144.96,144.92,32.20765197]
[1741141864955,6.8984,144.96,144.91,32.20765197]
[1741141865175,39.10605197,144.96,144.91,32.20765197]
[1741141865356,6.8984,144.96,144.91,32.20765197]
[1741141865977,32.20765197,144.95,144.89,32.20765197]
[1741141866273,32.20765197,144.94,144.89,32.20765197]
[1741141866472,32.20765197,144.94,144.88,32.20765197]
[1741141866473,6.8998,144.93,144.88,32.20765197]
[1741141866659,56.35715197,144.93,144.88,32.20765197]
[1741141866861,32.20765197,144.91,144.85,32.20765197]
[1741141867264,32.20765197,144.92,144.86,32.20765197]
[1741141867585,32.20765197,144.91,144.86,32.20765197]
[1741141867878,32.20765197,144.9,144.84,32.20765197]
[1741141868078,32.20765197,144.91,144.85,32.20765197]
[1741141868382,32.20765197,144.9,144.85,32.20765197]
[1741141868566,6.9017,144.89,144.85,32.20765197]
[1741141868874,6.9017,144.89,144.84,32.20765197]
[1741141869060,6.9017,144.89,144.85,32.20765197]
[1741141869259,81.8,144.94,144.88,32.20765197]
[1741141869468,6.8989,144.95,144.9,32.20765197]
[1741141869671,39.10655197,144.95,144.89,32.49197511]
[1741141870271,32.20765197,144.92,144.85,0.28432314]
[1741141870469,32.20765197,144.89,144.83,32.20765197]
[1741141870853,32.20765197,144.86,144.78,87.827]
[1741141871055,32.20765197,144.84,144.78,113.80765197]
[1741141871284,81.8,144.85,144.78,81.6]
[1741141871491,32.20765197,144.82,144.75,83.1523]
[1741141871687,32.20765197,144.79,144.73,32.20765197]
[1741141871900,32.20765197,144.78,144.72,32.20765197]
[1741141872102,32.20765197,144.75,144.7,32.20765197]
[1741141872386,32.20765197,144.76,144.7,32.49197511]
[1741141872588,39.11595197,144.76,144.7,32.20765197]
[1741141872811,32.20765197,144.72,144.66,32.20765197]
[1741141872981,207.4,144.75,144.66,32.20765197]
[1741141872982,32.20765197,144.71,144.66,32.20765197]
[1741141873163,32.20765197,144.71,144.65,81.6]
[1741141873360,32.20765197,144.71,144.65,32.20765197]
[1741141873584,32.20765197,144.72,144.66,32.20765197]
[1741141873759,32.20765197,144.69,144.66,0.033]
[1741141873962,32.20765197,144.71,144.66,0.033]
[1741141874158,32.20765197,144.72,144.66,32.24065197]
[1741141875167,131.22,144.75,144.69,32.20765197]
[1741141875168,37.82765197,144.75,144.69,32.20765197]
[1741141875490,37.82765197,144.75,144.66,6.9457]
[1741141875491,157.80765197,144.77,144.71,32.20765197]
[1741141876055,81.8,144.78,144.73,32.20765197]
[1741141876255,6.043,144.81,144.75,32.20765197]
[1741141876256,32.20765197,144.81,144.75,32.20765197]
[1741141876688,81.8,144.82,144.76,52.25463849]
[1741141876689,134.05463849,144.82,144.76,52.25463849]
[1741141876980,52.25463849,144.79,144.74,52.25463849]
[1741141877182,52.25463849,144.76,144.7,0.28432314]
[1741141877356,125.6,144.8,144.73,52.25463849]
[1741141877555,52.25463849,144.79,144.73,52.25463849]
[1741141877997,52.25463849,144.79,144.74,52.25463849]
[1741141878162,52.25463849,144.8,144.74,52.25463849]
[1741141878595,52.25463849,144.79,144.74,52.25463849]
[1741141878893,59.16133849,144.79,144.73,52.25463849]
[1741141879098,52.25463849,144.79,144.73,52.25463849]
[1741141879279,134.05463849,144.81,144.75,52.25463849]
[1741141879875,52.25463849,144.8,144.74,52.53896163]
[1741141880289,52.25463849,144.78,144.73,81.6]
[1741141880492,52.25463849,144.74,144.68,52.25463849]
[1741141880997,52.25463849,144.73,144.67,133.85463849]
[1741141881196,52.25463849,144.74,144.68,52.25463849]
[1741141881366,52.25463849,144.73,144.68,0.28432314]
[1741141881568,52.25463849,144.74,144.68,52.53896163]
[1741141881779,52.25463849,144.75,144.69,52.25463849]
[1741141882806,52.25463849,144.75,144.7,6.9108]
[1741141883098,52.25463849,144.73,144.67,133.85463849]
[1741141883303,52.25463849,144.73,144.67,81.6]
[1741141883304,28.18166051,144.73,144.67,81.6]
[1741141883497,52.25463849,144.73,144.67,133.85463849]
[1741141883691,52.25463849,144.73,144.67,140.76673849]
[1741141883882,52.25463849,144.74,144.68,52.25463849]
[1741141884083,81.8,144.76,144.71,52.25463849]
[1741141884279,140.96163849,144.78,144.72,52.25463849]
[1741141884478,140.96163849,144.78,144.68,52.25463849]
[1741141884479,52.25463849,144.74,144.68,52.25463849]
[1741141884786,52.25463849,144.73,144.67,52.25463849]
[1741141884982,259.65463849,144.76,144.7,52.53896163]
[1741141885192,214.3081,144.76,144.66,81.633]
[1741141885389,52.25463849,144.72,144.66,133.88763849]
[1741141885904,52.25463849,144.69,144.66,0.033]
[1741141886080,52.25463849,144.68,144.66,0.033]
[1741141886282,5.62,144.71,144.66,0.033]
[1741141886283,52.25463849,144.67,144.66,0.033]
[1741141886880,59.16683849,144.67,144.66,0.033]
[1741141887081,6.9122,144.67,144.66,0.033]
[1741141887308,52.25463849,144.68,144.66,0.033]
[1741141887675,6.9116,144.69,144.66,0.033]
[1741141887676,52.25463849,144.69,144.66,0.033]
[1741141887980,5.62,144.71,144.68,52.25463849]
[1741141888903,5.62,144.71,144.66,52.28763849]
[1741141889114,12.5304,144.71,144.66,52.28763849]
[1741141889290,52.25463849,144.7,144.66,0.033]
[1741141889495,64.78503849,144.71,144.66,0.033]
[1741141889892,134.05463849,144.7,144.66,0.033]
[1741141890099,52.25463849,144.69,144.66,0.033]
[1741141890426,134.05463849,144.7,144.66,0.033]
[1741141891202,81.8,144.7,144.66,52.28763849]
[1741141891724,5.62,144.71,144.68,52.25463849]
[1741141892009,5.62,144.71,144.67,52.25463849]
[1741141892199,5.62,144.71,144.66,52.28763849]
[1741141892397,5.62,144.71,144.67,52.25463849]
[1741141892629,52.25463849,144.74,144.68,52.53896163]
[1741141892808,81.8,144.75,144.71,52.25463849]
[1741141893129,140.96163849,144.78,144.72,52.25463849]
[1741141893295,88.707,144.78,144.73,52.25463849]
[1741141893613,88.707,144.78,144.72,52.25463849]
[1741141893786,52.25463849,144.8,144.74,52.25463849]
[1741141894221,81.8,144.81,144.74,52.25463849]
[1741141894424,134.05463849,144.8,144.74,52.25463849]
[1741141894743,88.7061,144.8,144.75,52.25463849]
[1741141895341,134.05463849,144.83,144.76,52.53896163]
[1741141895640,52.25463849,144.81,144.75,81.6]
[1741141895828,52.25463849,144.8,144.75,81.6]
[1741141896342,52.25463849,144.81,144.75,133.85463849]
[1741141896526,52.25463849,144.8,144.75,81.6]
[1741141896911,134.05463849,144.79,144.73,52.25463849]
[1741141897149,52.25463849,144.76,144.7,52.25463849]
[1741141897340,52.25463849,144.75,144.69,52.25463849]
[1741141897665,52.25463849,144.74,144.68,52.25463849]
[1741141897817,52.25463849,144.73,144.67,133.85463849]
[1741141898020,52.25463849,144.73,144.67,52.25463849]
[1741141898240,52.25463849,144.72,144.66,52.57196163]
[1741141898437,81.8,144.74,144.67,52.25463849]
[1741141898438,52.25463849,144.73,144.67,52.25463849]
[1741141898653,32.19268284,144.73,144.67,32.19268284]
[1741141898951,81.8,144.74,144.66,32.51000598]
[1741141898952,32.19268284,144.72,144.66,32.51000598]
[1741141899250,32.19268284,144.69,144.66,0.033]
[1741141899448,32.19268284,144.67,144.66,0.033]
[1741141900142,32.19268284,144.67,144.66,0.0001]
[1741141900554,72.36900253,144.67,144.66,0.0001]
[1741141901129,79.28120253,144.67,144.66,0.0001]
[1741141901552,79.56552567,144.67,144.66,0.0001]
[1741141902180,79.4233641,144.67,144.66,0.0001]
[1741141902487,79.28120253,144.67,144.66,0.0001]
[1741141902848,26.9122,144.67,144.66,0.0001]
[1741141903054,79.28120253,144.67,144.66,0.0001]
[1741141904394,59.28120253,144.67,144.66,0.0001]
[1741141905281,59.4233641,144.67,144.66,0.0001]
[1741141907975,59.28120253,144.67,144.66,0.0001]
[1741141908179,52.36900253,144.67,144.66,0.0001]
[1741141908385,125.6,144.69,144.66,0.0001]
[1741141908690,52.36900253,144.67,144.66,0.0001]
[1741141909203,125.6,144.69,144.66,0.0001]
[1741141909405,81.8,144.68,144.66,0.0001]
[1741141909786,0.03,144.67,144.66,0.0001]
[1741141910110,52.39900253,144.67,144.66,0.0001]
[1741141910405,0.03,144.67,144.66,0.0001]
[1741141911401,52.39900253,144.67,144.66,0.0001]
[1741141911701,0.03,144.67,144.66,0.0001]
[1741141913287,81.8,144.75,144.69,20.0]
[1741141913608,88.7071,144.78,144.72,52.36900253]
[1741141913907,81.8,144.77,144.72,52.36900253]
[1741141914112,129.04511792,144.81,144.7,0.28432314]
[1741141914113,52.36900253,144.79,144.73,52.36900253]
[1741141914313,52.36900253,144.81,144.76,0.28432314]
[1741141914481,0.03,144.82,144.8,52.36900253]
[1741141914907,0.03,144.82,144.78,52.36900253]
[1741141915686,0.03,144.82,144.8,52.36900253]
[1741141916009,0.03,144.82,144.81,52.36900253]
[1741141916511,0.03,144.82,144.77,87.6662]
[1741141916815,0.03,144.82,144.77,58.43520253]
[1741141916991,0.03,144.82,144.81,52.36900253]
[1741141918324,0.03,144.82,144.81,52.65332567]
[1741141919893,0.03,144.82,144.81,134.25332567]
[1741141920504,0.03,144.84,144.83,20.28432314]
[1741141920828,0.03,144.9,144.84,0.28432314]
[1741141921111,0.03,144.9,144.88,52.36900253]
[1741141921282,0.03,144.9,144.89,52.65332567]
[1741141921488,0.03,144.9,144.89,141.15502567]
[1741141921701,0.03,144.9,144.89,134.25332567]
[1741141922409,0.03,144.9,144.89,193.5240282]
[1741141922906,0.03,144.95,144.93,0.28432314]
[1741141923295,0.03,144.95,144.94,52.36900253]
[1741141923901,0.03,144.95,144.94,59.55272567]
[1741141924120,0.03,144.97,144.96,20.28432314]
[1741141924413,0.03,144.98,144.97,0.28432314]
[1741141924628,0.03,144.98,144.97,126.47014014]
[1741141925022,0.033,145.02,145.01,20.28432314]
[1741141925189,0.03,145.05,145.04,105.0223282]
[1741141925390,1.8507911,145.07,145.06,20.28432314]
[1741141925589,1.8507911,145.07,145.06,80.99387124]
[1741141925813,1.8507911,145.07,145.06,79.54692567]
[1741141926014,0.1841911,145.07,145.06,391.54692567]
[1741141926217,0.03,145.14,145.07,0.28432314]
[1741141926521,0.03,145.14,145.12,52.65332567]
[1741141927021,0.03,145.2,145.15,20.0]
[1741141927211,0.03,145.2,145.16,0.28432314]
[1741141927412,0.03,145.2,145.19,52.65332567]
[1741141927791,0.03,145.2,145.19,52.5111641]
[1741141927990,0.03,145.2,145.18,0.14216157]
[1741141928210,0.03,145.2,145.18,52.5111641]
[1741141928422,0.03,145.2,145.18,0.14216157]
[1741141928718,52.39900253,145.2,145.16,0.14216157]
[1741141928887,0.03,145.2,145.16,0.14216157]
[1741141929090,52.39900253,145.2,145.16,0.14216157]
[1741141929489,52.39900253,145.2,145.15,0.28432314]
[1741141929718,0.03,145.2,145.13,52.36900253]
[1741141929927,52.36900253,145.18,145.12,52.36900253]
[1741141930128,52.36900253,145.15,145.09,52.36900253]
[1741141930287,52.36900253,145.16,145.1,52.36900253]
[1741141930605,52.36900253,145.14,145.08,52.36900253]
[1741141930923,52.36900253,145.13,145.01,2.0]
[1741141931120,52.36900253,145.14,145.08,52.36900253]
[1741141931297,52.36900253,145.13,145.07,52.5111641]
[1741141931701,6.8913,145.11,145.06,52.36900253]
[1741141932024,52.36900253,145.08,145.02,52.36900253]
[1741141932229,134.16900253,145.1,145.04,52.36900253]
[1741141932452,134.16900253,145.1,145.05,0.14216157]
[1741141932648,6.8913,145.11,145.07,52.36900253]
[1741141932838,134.16900253,145.17,145.11,0.14216157]
[1741141933025,52.36900253,145.15,145.09,52.36900253]
[1741141933207,52.36900253,145.13,145.07,52.5111641]
[1741141933917,6.8908,145.12,145.03,52.36900253]
[1741141934107,52.36900253,145.08,145.02,52.36900253]
[1741141934504,52.36900253,145.07,145.01,52.36900253]
[1741141934701,52.36900253,145.03,144.98,52.36900253]
[1741141934904,52.36900253,145.03,144.97,133.96900253]
[1741141935111,52.36900253,145.03,144.97,52.36900253]
[1741141935323,207.4,145.09,144.94,87.8737]
[1741141935324,52.36900253,145.05,144.99,52.36900253]
[1741141935513,52.36900253,145.06,145.0,52.36900253]
[1741141935702,52.36900253,145.07,145.01,52.36900253]
[1741141935898,141.06160253,145.09,145.03,52.65332567]
[1741141936215,12.5113,145.11,145.06,52.36900253]
[1741141936413,5.62,145.11,145.06,52.36900253]
[1741141936608,5.62,145.11,145.07,52.36900253]
[1741141936816,0.03,145.13,145.1,52.36900253]
[1741141937324,0.03,145.13,145.08,52.5111641]
[1741141937832,0.03,145.13,145.09,52.36900253]
[1741141938123,0.03,145.13,145.11,52.36900253]
[1741141938300,0.03,145.13,145.12,52.65332567]
[1741141938922,0.03,145.13,145.11,52.36900253]
[1741141939149,0.03,145.13,145.1,52.36900253]
[1741141939745,59.25320606,145.15,145.09,52.36900253]
[1741141940129,6.88420353,145.15,145.09,52.36900253]
[1741141940330,52.36900253,145.14,145.05,0.14216157]
[1741141940529,52.36900253,145.13,145.07,52.36900253]
[1741141940736,52.36900253,145.13,145.08,0.14216157]
[1741141941136,52.33380658,145.13,145.08,0.14216157]
[1741141941344,134.16900253,145.14,145.08,52.36900253]
[1741141941853,52.36900253,145.11,145.05,52.36900253]
[1741141942055,52.36900253,145.09,145.03,133.96900253]
[1741141942224,52.36900253,145.08,145.03,81.6]
[1741141942421,52.36900253,145.07,145.01,52.36900253]
[1741141942654,52.36900253,145.05,144.99,52.36900253]
[1741141942826,134.16900253,145.04,144.98,52.36900253]
[1741141943025,52.36900253,145.01,144.95,52.36900253]
[1741141943226,52.36900253,145.0,144.95,52.36900253]
[1741141943535,134.16900253,145.02,144.96,52.36900253]
[1741141943736,134.16900253,145.02,144.97,52.36900253]
[1741141943737,81.8,145.02,144.97,52.36900253]
[1741141943939,52.36900253,145.06,145.0,52.36900253]
[1741141944135,134.16900253,145.05,144.99,52.36900253]
[1741141945038,81.8,145.08,145.02,52.36900253]
[1741141945242,59.25930253,145.13,145.07,52.36900253]
[1741141945552,52.36900253,145.11,145.05,52.36900253]
[1741141945739,134.16900253,145.11,145.05,52.36900253]
[1741141946143,81.8,145.11,145.08,52.36900253]
[1741141946452,52.36900253,145.11,145.05,52.5111641]
[1741141947141,6.8906,145.13,145.03,52.36900253]
[1741141947142,52.36900253,145.09,145.03,52.36900253]
[1741141947552,134.16900253,145.1,145.04,52.36900253]
[1741141947928,52.36900253,145.09,145.03,52.36900253]
[1741141948130,59.26170253,145.09,145.03,52.36900253]
[1741141948736,52.36900253,145.04,144.98,52.36900253]
[1741141948962,52.36900253,145.03,144.97,134.00200253]
[1741141949135,52.36900253,145.04,144.98,52.36900253]
[1741141949448,52.36900253,145.0,144.97,0.033]
[1741141949654,81.8,145.02,144.97,0.033]
[1741141949869,52.36900253,144.99,144.97,0.033]
[1741141950036,59.26630253,144.99,144.97,0.033]
[1741141950450,52.36900253,145.0,144.97,0.033]
[1741141950847,52.36900253,145.01,144.97,0.033]
[1741141951060,81.8,145.02,144.97,52.40200253]
[1741141951261,141.06470253,145.02,144.97,0.033]
[1741141951558,81.8,145.02,144.97,52.40200253]
[1741141951762,52.36900253,145.01,144.97,0.033]
[1741141952066,81.8,145.02,144.97,59.29990253]
[1741141952240,81.8,145.04,144.99,52.36900253]
[1741141952558,81.8,145.06,145.01,52.36900253]
[1741141952743,134.16900253,145.06,145.0,52.36900253]
[1741141953130,81.8,145.06,145.02,52.36900253]
[1741141953327,141.06080253,145.1,145.03,52.36900253]
[1741141953554,134.16900253,145.1,145.04,52.36900253]
[1741141953756,141.06090253,145.1,145.04,52.36900253]
[1741141954674,134.16900253,145.1,145.04,52.36900253]
[1741141954973,141.06080253,145.1,145.04,52.36900253]
[1741141955276,52.36900253,145.06,144.99,52.65332567]
[1741141955480,52.36900253,145.06,144.99,134.25332567]
[1741141955784,52.36900253,145.03,144.97,0.033]
[1741141956087,134.16900253,145.04,144.98,52.36900253]
[1741141956371,59.26170253,145.08,145.02,52.36900253]
[1741141956584,134.16900253,145.07,145.01,52.36900253]
[1741141956878,52.36900253,145.06,145.0,52.36900253]
[1741141957054,52.36900253,145.05,144.99,133.96900253]
[1741141957370,52.36900253,145.05,144.99,52.36900253]
[1741141957879,52.36900253,145.04,144.98,52.36900253]
[1741141958175,52.36900253,145.05,144.99,52.36900253]
[1741141958380,6.8946,145.04,144.99,52.36900253]
[1741141958587,52.36900253,145.03,144.97,134.00200253]
[1741141959685,52.36900253,144.99,144.97,0.033]
[1741141960687,141.06650253,144.98,144.97,0.033]
[1741141961172,184.86650253,144.98,144.97,0.033]
[1741141962572,177.96900253,144.98,144.97,0.033]
[1741141963279,185.0086641,144.98,144.97,0.033]
[1741141963963,185.15082567,144.98,144.97,0.033]
[1741141964379,185.15082567,144.98,144.84,81.6]
[1741141964380,0.14216157,144.94,144.84,81.6]
[1741141964690,52.36900253,144.88,144.82,140.90670253]
[1741141964896,52.36900253,144.9,144.84,52.36900253]
[1741141965096,52.36900253,144.91,144.85,52.36900253]
[1741141965462,52.36900253,144.92,144.86,52.36900253]
[1741141965693,125.6,144.93,144.88,52.36900253]
[1741141965892,12.5795,144.94,144.88,52.36900253]
[1741141966069,52.36900253,144.93,144.87,52.36900253]
[1741141966268,52.36900253,144.92,144.86,52.36900253]
[1741141966565,58.04900253,144.94,144.88,52.36900253]
[1741141966794,52.36900253,144.92,144.86,52.36900253]
[1741141966982,52.36900253,144.9,144.84,52.36900253]
[1741141967183,81.8,144.89,144.84,52.36900253]
[1741141967893,52.36900253,144.88,144.82,0.033]
[1741141968104,52.36900253,144.86,144.82,0.033]
[1741141968395,134.16900253,144.85,144.82,0.033]
[1741141968565,59.27310253,144.84,144.82,0.033]
[1741141969376,81.8,144.85,144.82,0.033]
[1741141970086,88.7037,144.85,144.82,0.033]
[1741141970496,259.76900253,144.84,144.82,0.033]
[1741141970675,134.16900253,144.83,144.82,0.033]
[1741141970873,52.36900253,144.83,144.82,0.033]
[1741141971086,177.96900253,144.84,144.82,0.033]
[1741141971289,59.27270253,144.85,144.82,0.033]
[1741141971796,52.36900253,144.83,144.82,0.033]
[1741141972470,259.76900253,144.84,144.82,0.033]
[1741141972672,214.3043,144.84,144.82,0.033]
[1741141973207,52.36900253,144.83,144.77,28.52030825]
[1741141973370,52.36900253,144.81,144.76,81.6]
[1741141973572,52.36900253,144.8,144.76,81.6]
[1741141973885,259.76900253,144.83,144.76,52.36900253]
[1741141974080,81.8,144.82,144.76,52.36900253]
[1741141974292,81.8,144.82,144.79,52.36900253]
[1741141974495,88.7043,144.84,144.79,52.36900253]
[1741141975081,141.07330253,144.84,144.78,52.36900253]
[1741141975387,81.8,144.88,144.83,52.36900253]
[1741141975597,81.8,144.88,144.84,52.36900253]
[1741141975771,52.36900253,144.87,144.8,81.6]
[1741141975965,81.8,144.86,144.79,6.536]
[1741141976170,81.8,144.86,144.81,52.36900253]
[1741141976791,81.8,144.88,144.83,52.36900253]
[1741141977077,42.34305859,144.89,144.86,52.36900253]
[1741141978202,88.7009,144.91,144.86,52.36900253]
[1741141978698,88.7009,144.91,144.85,52.36900253]
[1741141978907,52.36900253,144.9,144.83,133.96900253]
[1741141979204,52.36900253,144.87,144.81,52.36900253]
[1741141979578,134.16900253,144.9,144.84,52.36900253]
[1741141979777,81.8,144.9,144.85,52.36900253]
[1741141980493,52.36900253,144.89,144.82,0.14216157]
[1741141980689,52.36900253,144.87,144.81,133.96900253]
[1741141980899,52.36900253,144.82,144.69,81.6]
[1741141981207,52.36900253,144.78,144.72,52.36900253]
[1741141981585,52.36900253,144.79,144.72,52.36900253]
[1741141981796,52.36900253,144.77,144.71,81.6]
[1741141982115,52.36900253,144.75,144.69,52.36900253]
[1741141982285,134.16900253,144.77,144.7,52.36900253]
[1741141982480,52.36900253,144.73,144.7,0.033]
[1741141982699,134.16900253,144.72,144.7,0.033]
[1741141983409,52.36900253,144.71,144.7,0.033]
[1741141983580,59.27930253,144.71,144.7,0.033]
[1741141984102,134.16900253,144.72,144.7,0.033]
[1741141984306,81.8,144.72,144.7,0.033]
[1741141984805,134.16900253,144.72,144.7,0.033]
[1741141985006,81.8,144.72,144.7,0.033]
[1741141986108,259.76900253,144.71,144.7,0.033]
[1741141986286,259.76900253,144.71,144.66,0.0001]
[1741141986488,52.36900253,144.68,144.66,0.0001]
[1741141986712,52.36900253,144.69,144.66,0.0001]
[1741141987102,81.8,144.7,144.66,0.0001]
[1741141987705,134.16900253,144.69,144.66,0.0001]